[Event "Schack-SM 2023: Mastarklassen"]
[Site "Helsingborg Arena, Mellersta Stenbocksgatan 14, Helsingborg, Sweden"]
[Date "2023.07.05"]
[Round "5.5"]
[White "Liden, Tommy"]
[Black "Mardell, Jimmy"]
[Result "0-1"]
[TimeControl "90 minutes for 40 moves + 30 minutes for the rest of games + 30 seconds per move from move one."]
[WhiteElo "2107"]
[BlackElo "2160"]

1. e4 {[%clk 01:29:18]} {[%emt 00:01:41]} c5 {[%clk 01:30:51]} {[%emt
00:00:10]} 2. Nf3 {[%clk 01:29:36]} {[%emt 00:00:13]} e6 {[%clk 01:31:03]}
{[%emt 00:00:17]} 3. c3 {[%clk 01:29:58]} {[%emt 00:00:07]} Nf6 {[%clk
01:31:05]} {[%emt 00:00:28]} 4. e5 {[%clk 01:26:38]} {[%emt 00:03:50]} Nd5
{[%clk 01:31:22]} {[%emt 00:00:14]} 5. g3 {[%clk 01:21:59]} {[%emt 00:05:08]}
d6 {[%clk 01:28:21]} {[%emt 00:03:31]} 6. Bg2 {[%clk 01:19:29]} {[%emt
00:03:01]} Bd7 {[%clk 01:19:31]} {[%emt 00:09:20]} 7. Na3 {[%clk 01:15:29]}
{[%emt 00:04:30]} f6 {[%clk 00:56:47]} {[%emt 00:23:14]} 8. Nc4 {[%clk
01:04:19]} {[%emt 00:11:40]} dxe5 {[%clk 00:44:02]} {[%emt 00:13:15]} 9. Nfxe5
{[%clk 01:04:19]} {[%emt 00:00:29]} fxe5 {[%clk 00:40:12]} {[%emt 00:04:20]} 10.
Qh5+ {[%clk 01:04:37]} {[%emt 00:00:11]} g6 {[%clk 00:40:00]} {[%emt 00:00:43]}
11. Qxe5 {[%clk 01:04:28]} {[%emt 00:00:40]} Qf6 {[%clk 00:23:04]} {[%emt
00:17:27]} 12. Qxf6 {[%clk 01:04:46]} {[%emt 00:00:11]} Nxf6 {[%clk 00:23:31]}
{[%emt 00:00:03]} 13. Bxb7 {[%clk 01:05:09]} {[%emt 00:00:08]} Bc6 {[%clk
00:23:33]} {[%emt 00:00:28]} 14. Bxa8 {[%clk 01:05:24]} {[%emt 00:00:14]} Bxa8
{[%clk 00:24:00]} {[%emt 00:00:03]} 15. O-O {[%clk 01:05:27]} {[%emt 00:00:27]}
Nbd7 {[%clk 00:23:56]} {[%emt 00:00:34]} 16. Re1 {[%clk 01:04:17]} {[%emt
00:01:39]} Kf7 {[%clk 00:24:07]} {[%emt 00:00:18]} 17. d3 {[%clk 01:04:11]}
{[%emt 00:00:37]} Be7 {[%clk 00:20:44]} {[%emt 00:03:54]} 18. Bf4 {[%clk
01:04:21]} {[%emt 00:00:20]} Nb6 {[%clk 00:18:58]} {[%emt 00:02:16]} 19. Ne5+
{[%emt 00:03:29]} Kg7 20. Rad1 {[%clk 00:57:46]} {[%emt 00:04:15]} Rd8 {[%clk
00:17:05]} {[%emt 00:02:45]} 21. f3 {[%clk 00:51:34]} {[%emt 00:06:41]} Bb7
{[%clk 00:15:03]} {[%emt 00:02:31]} 22. Kf2 {[%clk 00:50:14]} {[%emt 00:01:50]}
Nfd5 {[%clk 00:14:04]} {[%emt 00:01:30]} 23. Bc1 {[%clk 00:49:28]} {[%emt
00:01:15]} g5 {[%emt 00:01:19]} 24. a3 {[%clk 00:46:11]} {[%emt 00:03:37]} Rf8
{[%clk 00:09:35]} {[%emt 00:04:18]} 25. c4 {[%clk 00:42:46]} {[%emt 00:03:56]}
Nc7 {[%clk 00:10:00]} {[%emt 00:00:06]} 26. b3 {[%clk 00:42:33]} {[%emt
00:00:44]} Bf6 {[%clk 00:07:21]} {[%emt 00:03:09]} 27. f4 {[%clk 00:35:44]}
{[%emt 00:07:18]} Ne8 {[%emt 00:01:32]} 28. a4 {[%clk 00:30:42]} {[%emt
00:05:31]} Nd6 {[%clk 00:03:50]} {[%emt 00:03:00]} 29. Ba3 {[%clk 00:24:40]}
{[%emt 00:06:31]} gxf4 {[%clk 00:02:07]} {[%emt 00:02:14]} 30. Bxc5 {[%clk
00:23:35]} {[%emt 00:01:35]} fxg3+ {[%clk 00:02:30]} {[%emt 00:00:06]} 31. Kxg3
{[%clk 00:17:07]} {[%emt 00:06:58]} Be7 {[%clk 00:02:10]} {[%emt 00:00:50]} 32.
Kh3 {[%clk 00:14:33]} {[%emt 00:03:03]} h5 {[%clk 00:01:53]} {[%emt 00:00:47]}
33. Rg1+ {[%clk 00:14:18]} {[%emt 00:00:46]} Kh7 {[%clk 00:02:19]} {[%emt
00:00:04]} 34. Rdf1 {[%clk 00:13:33]} {[%emt 00:01:15]} Rf5 {[%clk 00:01:39]}
{[%emt 00:01:11]} 35. Bxd6 {[%clk 00:03:16]} {[%emt 00:10:47]} Bxd6 {[%clk
00:01:56]} {[%emt 00:00:13]} 36. Rxf5 {[%clk 00:03:31]} {[%emt 00:00:14]} exf5
{[%emt 00:00:05]} 37. Nf7 {[%clk 00:03:02]} {[%emt 00:00:56]} Bc5 {[%clk
00:01:42]} {[%emt 00:01:12]} 38. Rd1 {[%clk 00:01:50]} {[%emt 00:01:42]} Be3
{[%clk 00:00:58]} {[%emt 00:01:15]} 39. d4 {[%clk 00:01:26]} {[%emt 00:00:53]}
f4 {[%clk 00:00:43]} {[%emt 00:00:45]} 40. Ne5 {[%emt 00:02:50]} Be4 41. a5
{[%clk 00:26:19]} {[%emt 00:03:56]} Nc8 {[%clk 00:24:58]} {[%emt 00:06:05]} 42.
d5 {[%clk 00:25:06]} {[%emt 00:01:43]} Nd6 {[%clk 00:19:37]} {[%emt 00:05:52]}
43. b4 {[%clk 00:24:09]} {[%emt 00:01:27]} Bf2 {[%clk 00:09:45]} {[%emt
00:10:21]} 44. c5 {[%clk 00:22:14]} {[%emt 00:02:26]} f3 {[%clk 00:09:42]}
{[%emt 00:00:34]} 45. Nxf3 {[%clk 00:18:52]} {[%emt 00:03:51]} Bxf3 {[%clk
00:10:06]} {[%emt 00:00:06]} 46. Rf1 {[%clk 00:18:23]} {[%emt 00:00:59]} Ne4
{[%clk 00:06:10]} {[%emt 00:04:25]} 47. Rxf2 {[%clk 00:18:33]} {[%emt
00:00:21]} Nxf2+ {[%emt 00:00:20]} 48. Kg3 {[%clk 00:18:57]} {[%emt 00:00:02]}
Bxd5 {[%clk 00:06:21]} {[%emt 00:00:34]} 49. Kxf2 {[%clk 00:19:19]} {[%emt
00:00:07]} Bc6 {[%clk 00:03:46]} {[%emt 00:03:05]} 50. Ke3 {[%clk 00:19:00]}
{[%emt 00:00:49]} Kg6 {[%clk 00:04:08]} {[%emt 00:00:09]} 51. Kd4 {[%clk
00:18:46]} {[%emt 00:00:43]} Kf6 {[%clk 00:04:17]} {[%emt 00:00:22]} 52. a6
{[%emt 00:05:16]} Bb5 {[%clk 00:02:54]} {[%emt 00:01:49]} 53. Kd5 {[%clk
00:14:22]} {[%emt 00:00:12]} Ke7 {[%clk 00:03:15]} {[%emt 00:00:09]} 54. c6
{[%clk 00:11:48]} {[%emt 00:03:04]} Bxa6 {[%emt 00:00:40]} 55. Kc5 {[%clk
00:11:55]} {[%emt 00:00:19]} Kd8 {[%clk 00:03:22]} {[%emt 00:00:18]} 56. b5
{[%clk 00:12:03]} {[%emt 00:00:20]} Bc8 {[%clk 00:02:50]} {[%emt 00:01:02]} 57.
Kd6 {[%clk 00:08:45]} {[%emt 00:03:49]} Bh3 {[%clk 00:02:46]} {[%emt 00:00:34]}
58. Kc5 {[%clk 00:08:00]} {[%emt 00:01:15]} Kc7 {[%clk 00:03:07]} {[%emt
00:00:09]} 0-1

[ePGN "0.1;DGT LiveChess/2.2.5"]

[Event "Schack-SM 2023: Sverigemastarklassen"]
[Site "Helsingborg Arena, Mellersta Stenbocksgatan 14, Helsingborg, Sweden"]
[Date "2023.07.05"]
[Round "5.1"]
[White "Kucuksari, Kaan"]
[Black "Ernst, Thomas"]
[Result "0-1"]
[TimeControl "90 minutes for 40 moves + 30 minutes for the rest of the game + 30 seconds per move from move one."]
[WhiteTitle "IM"]
[BlackTitle "GM"]
[WhiteElo "2512"]
[BlackElo "2288"]

1. d4 {[%clk 01:30:59]} Nf6 {[%clk 01:30:50]} {[%emt 00:00:10]} 2. c4 {[%clk
01:31:28]} {[%emt 00:00:02]} g6 {[%clk 01:31:06]} {[%emt 00:00:13]} 3. g3
{[%clk 01:31:56]} {[%emt 00:00:02]} Bg7 {[%clk 01:31:26]} {[%emt 00:00:10]} 4.
Bg2 {[%clk 01:32:23]} {[%emt 00:00:03]} O-O {[%clk 01:31:41]} {[%emt 00:00:14]}
5. Nc3 {[%clk 01:32:51]} {[%emt 00:00:02]} d6 {[%clk 01:31:51]} {[%emt
00:00:20]} 6. Nf3 {[%clk 01:33:19]} {[%emt 00:00:02]} Nc6 {[%clk 01:31:57]}
{[%emt 00:00:23]} 7. O-O {[%clk 01:33:44]} {[%emt 00:00:06]} a6 {[%clk
01:32:12]} {[%emt 00:00:14]} 8. b3 {[%clk 01:34:11]} {[%emt 00:00:03]} Rb8
{[%clk 01:32:20]} {[%emt 00:00:21]} 9. d5 {[%clk 01:34:39]} {[%emt 00:00:03]}
Na5 {[%clk 01:31:13]} {[%emt 00:01:36]} 10. Bg5 {[%clk 01:35:04]} {[%emt
00:00:06]} c5 {[%clk 01:30:47]} {[%emt 00:00:55]} 11. dxc6 {[%clk 01:35:32]}
{[%emt 00:00:03]} bxc6 {[%clk 01:30:54]} {[%emt 00:00:22]} 12. Qd2 {[%clk
01:31:40]} {[%emt 00:04:22]} Re8 {[%clk 01:16:10]} {[%emt 00:15:14]} 13. Rad1
{[%clk 01:31:59]} {[%emt 00:00:11]} Qb6 {[%clk 01:14:53]} {[%emt 00:01:46]} 14.
Nd4 {[%clk 01:27:20]} {[%emt 00:05:10]} Bd7 {[%clk 01:07:35]} {[%emt 00:07:48]}
15. e4 {[%clk 01:23:53]} {[%emt 00:03:56]} Nb7 {[%clk 01:01:21]} {[%emt
00:06:44]} 16. h3 {[%clk 01:20:16]} {[%emt 00:04:08]} Nc5 {[%clk 00:54:58]}
{[%emt 00:06:52]} 17. Be3 {[%clk 01:20:43]} {[%emt 00:00:04]} Qc7 {[%clk
00:54:21]} {[%emt 00:01:06]} 18. Nde2 {[%clk 01:16:22]} {[%emt 00:04:52]} Ne6
{[%clk 00:53:48]} {[%emt 00:01:02]} 19. f4 {[%clk 01:15:57]} {[%emt 00:00:55]}
c5 {[%clk 00:49:38]} {[%emt 00:04:39]} 20. g4 {[%clk 01:14:58]} {[%emt
00:01:30]} Bc6 {[%clk 00:49:38]} {[%emt 00:00:30]} 21. f5 {[%clk 01:12:15]}
{[%emt 00:03:13]} Nf8 {[%clk 00:49:13]} {[%emt 00:00:55]} 22. Nf4 {[%clk
01:10:43]} {[%emt 00:02:03]} Qb7 {[%clk 00:41:45]} {[%emt 00:07:56]} 23. Qc2
{[%clk 01:08:40]} {[%emt 00:02:34]} gxf5 {[%clk 00:41:39]} {[%emt 00:00:36]} 24.
exf5 {[%clk 01:06:30]} {[%emt 00:02:41]} Bxg2 {[%clk 00:41:57]} {[%emt
00:00:12]} 25. Nxg2 {[%clk 01:06:58]} {[%emt 00:00:02]} N6d7 {[%clk 00:40:25]}
{[%emt 00:02:00]} 26. Ne4 {[%clk 01:02:45]} {[%emt 00:04:44]} a5 {[%clk
00:39:43]} {[%emt 00:01:12]} 27. g5 {[%clk 01:02:19]} {[%emt 00:00:56]} Be5
{[%clk 00:34:40]} {[%emt 00:05:32]} 28. Nh4 {[%clk 00:59:51]} {[%emt 00:02:59]}
a4 {[%clk 00:34:16]} {[%emt 00:00:54]} 29. Qg2 {[%clk 00:55:20]} {[%emt
00:05:01]} axb3 {[%clk 00:31:16]} {[%emt 00:03:30]} 30. axb3 {[%clk 00:32:58]}
{[%emt 00:22:52]} Qxb3 {[%clk 00:31:11]} {[%emt 00:00:36]} 31. Rde1 {[%clk
00:31:30]} {[%emt 00:01:58]} Qxc4 {[%clk 00:28:16]} {[%emt 00:03:23]} 32. g6
{[%clk 00:29:24]} {[%emt 00:02:37]} Kh8 {[%clk 00:24:48]} {[%emt 00:03:57]} 33.
Ng5 {[%clk 00:16:14]} {[%emt 00:13:41]} Qxh4 {[%clk 00:15:52]} {[%emt
00:09:27]} 34. Nxf7+ {[%clk 00:10:51]} {[%emt 00:05:54]} Kg8 {[%clk 00:12:15]}
{[%emt 00:04:06]} 35. Nh6+ {[%clk 00:09:17]} {[%emt 00:02:05]} Kh8 {[%clk
00:10:53]} {[%emt 00:01:52]} 36. Nf7+ {[%clk 00:08:42]} {[%emt 00:01:06]} Kg8
{[%clk 00:09:37]} {[%emt 00:01:46]} 37. Nh6+ {[%clk 00:04:57]} {[%emt
00:04:15]} Kh8 {[%clk 00:09:25]} {[%emt 00:00:42]} 38. g7+ {[%clk 00:04:32]}
{[%emt 00:00:55]} Bxg7 {[%clk 00:09:48]} {[%emt 00:00:06]} 39. Nf7+ {[%clk
00:05:01]} {[%emt 00:00:02]} Kg8 {[%clk 00:09:57]} {[%emt 00:00:21]} 40. f6
{[%clk 00:05:30]} {[%emt 00:00:02]} Qxf6 {[%clk 00:01:48]} {[%emt 00:08:38]} 41.
Rxf6 {[%clk 00:04:54]} {[%emt 00:01:06]} Nxf6 {[%clk 00:01:56]} {[%emt
00:00:21]} 42. Nh6+ {[%clk 00:04:44]} {[%emt 00:00:41]} Kh8 {[%clk 00:02:15]}
{[%emt 00:00:11]} 43. Nf7+ {[%clk 00:05:13]} {[%emt 00:00:02]} Kg8 {[%clk
00:02:32]} {[%emt 00:00:13]} 44. Nh6+ {[%clk 00:23:57]} {[%emt 00:11:46]} Kh8
{[%clk 00:32:52]} {[%emt 00:00:09]} 45. Nf5 {[%clk 00:24:20]} {[%emt 00:00:08]}
Ng6 {[%clk 00:32:49]} {[%emt 00:00:32]} 46. Qa2 {[%clk 00:22:07]} {[%emt
00:02:43]} Rg8 {[%clk 00:27:35]} {[%emt 00:05:43]} 47. Kh1 {[%clk 00:21:01]}
{[%emt 00:01:38]} Nh5 {[%clk 00:22:21]} {[%emt 00:05:43]} 48. Qe2 {[%clk
00:19:23]} {[%emt 00:02:08]} Nf6 {[%clk 00:20:46]} {[%emt 00:02:05]} 49. Bg5
{[%clk 00:16:01]} {[%emt 00:03:52]} d5 {[%clk 00:16:20]} {[%emt 00:04:55]} 50.
Qe6 {[%clk 00:14:04]} {[%emt 00:02:28]} Ne4 {[%clk 00:16:12]} {[%emt 00:00:36]}
51. Be3 {[%clk 00:09:54]} {[%emt 00:04:42]} Rbd8 {[%clk 00:14:38]} {[%emt
00:02:04]} 52. Rg1 {[%clk 00:09:02]} {[%emt 00:01:22]} Rgf8 {[%clk 00:12:43]}
{[%emt 00:02:24]} 53. Nxg7 {[%clk 00:06:21]} {[%emt 00:03:11]} Kxg7 {[%clk
00:13:06]} {[%emt 00:00:07]} 54. Qxe7+ {[%clk 00:03:11]} {[%emt 00:03:40]} Kh8
{[%clk 00:13:11]} {[%emt 00:00:25]} 55. Rxg6 {[%clk 00:01:22]} {[%emt
00:02:19]} hxg6 {[%clk 00:13:26]} {[%emt 00:00:14]} 56. Bh6 {[%clk 00:01:50]}
{[%emt 00:00:03]} Rf1+ {[%clk 00:13:04]} {[%emt 00:00:51]} 57. Kg2 {[%clk
00:02:19]} {[%emt 00:00:02]} Rf2+ {[%clk 00:13:22]} {[%emt 00:00:12]} 58. Kg1
{[%clk 00:02:48]} {[%emt 00:00:02]} Rg8 {[%clk 00:13:34]} {[%emt 00:00:18]} 59.
Qe5+ {[%clk 00:02:17]} {[%emt 00:01:01]} Kh7 {[%clk 00:13:34]} {[%emt
00:00:30]} 60. Qxd5 {[%clk 00:02:44]} {[%emt 00:00:03]} Rf5 {[%clk 00:13:21]}
{[%emt 00:00:41]} 61. Qb3 {[%clk 00:01:28]} {[%emt 00:01:47]} Rd8 {[%clk
00:09:59]} {[%emt 00:03:51]} 62. Be3 {[%clk 00:01:49]} {[%emt 00:00:09]} Rd7
{[%clk 00:09:39]} {[%emt 00:00:50]} 63. Qe6 {[%clk 00:01:55]} {[%emt 00:00:25]}
Rd1+ {[%clk 00:09:51]} {[%emt 00:00:17]} 64. Kg2 {[%clk 00:02:23]} {[%emt
00:00:02]} Nd6 {[%clk 00:09:50]} {[%emt 00:00:31]} 65. Qd7+ {[%clk 00:00:45]}
{[%emt 00:02:08]} Rf7 {[%clk 00:10:00]} {[%emt 00:00:20]} 66. Qa4 {[%clk
00:01:10]} {[%emt 00:00:06]} Rd5 {[%clk 00:07:47]} {[%emt 00:02:41]} 67. Qc6
{[%clk 00:01:27]} {[%emt 00:00:14]} Rd3 {[%clk 00:07:32]} {[%emt 00:00:44]} 68.
Qxc5 {[%clk 00:01:18]} {[%emt 00:00:41]} Nf5 {[%clk 00:07:47]} {[%emt
00:00:14]} 69. Bf2 {[%clk 00:01:06]} {[%emt 00:00:44]} Rd2 {[%clk 00:08:03]}
{[%emt 00:00:13]} 70. Kg1 {[%clk 00:01:22]} {[%emt 00:00:15]} Rb7 {[%clk
00:07:58]} {[%emt 00:00:33]} 71. Qc1 {[%clk 00:01:03]} {[%emt 00:00:50]} Rbb2
{[%clk 00:07:12]} {[%emt 00:01:14]} 72. Be1 {[%clk 00:01:19]} {[%emt 00:00:17]}
Rdc2 {[%clk 00:06:46]} {[%emt 00:00:55]} 73. Qf4 {[%clk 00:00:56]} {[%emt
00:00:54]} Rb1 {[%clk 00:06:49]} {[%emt 00:00:26]} 74. Qe5 {[%clk 00:00:36]}
{[%emt 00:00:51]} Rcc1 {[%clk 00:06:55]} {[%emt 00:00:25]} 75. Kf2 {[%clk
00:00:59]} {[%emt 00:00:06]} Rxe1 {[%clk 00:07:15]} {[%emt 00:00:10]} 76. Qc7+
{[%clk 00:01:27]} {[%emt 00:00:02]} Re7 {[%clk 00:07:18]} {[%emt 00:00:26]} 77.
Qa5 {[%clk 00:01:30]} {[%emt 00:00:27]} Re3 {[%clk 00:06:02]} {[%emt 00:01:40]}
78. Qa7+ {[%clk 00:01:28]} {[%emt 00:00:38]} Kh6 {[%clk 00:06:12]} {[%emt
00:00:20]} 79. Qa2 {[%clk 00:01:24]} {[%emt 00:00:35]} Reb3 {[%clk 00:06:18]}
{[%emt 00:00:22]} 80. Qd2+ {[%clk 00:01:53]} {[%emt 00:00:03]} Kh7 {[%clk
00:05:21]} {[%emt 00:01:26]} 81. Qd7+ {[%clk 00:02:21]} {[%emt 00:00:03]} Ng7
{[%clk 00:05:39]} {[%emt 00:00:11]} 82. Qd4 {[%clk 00:02:45]} {[%emt 00:00:07]}
Rxh3 {[%clk 00:05:21]} {[%emt 00:00:48]} 83. Kg2 {[%clk 00:03:14]} {[%emt
00:00:01]} Rbh1 {[%clk 00:05:09]} {[%emt 00:00:37]} 84. Qd7 {[%clk 00:03:25]}
{[%emt 00:00:24]} Kh6 {[%clk 00:05:13]} {[%emt 00:00:24]} 85. Qd2+ {[%clk
00:03:49]} {[%emt 00:00:07]} Kh7 {[%clk 00:05:08]} {[%emt 00:00:35]} 86. Qd7
{[%clk 00:04:18]} {[%emt 00:00:01]} R1h2+ {[%clk 00:05:19]} {[%emt 00:00:18]}
87. Kg1 {[%clk 00:04:47]} {[%emt 00:00:02]} Rh5 {[%clk 00:05:36]} {[%emt
00:00:11]} 88. Qe7 {[%clk 00:04:52]} {[%emt 00:00:27]} Rb2 {[%clk 00:05:41]}
{[%emt 00:00:18]} 89. Qf6 {[%clk 00:05:10]} {[%emt 00:00:19]} Re2 {[%clk
00:05:40]} {[%emt 00:00:29]} 90. Qa6 {[%clk 00:05:23]} {[%emt 00:00:19]} Rhe5
{[%clk 00:05:52]} {[%emt 00:00:18]} 91. Qb7 {[%clk 00:05:35]} {[%emt 00:00:18]}
Ra2 {[%clk 00:05:28]} {[%emt 00:00:49]} 92. Qb1 {[%clk 00:05:51]} {[%emt
00:00:18]} Rea5 {[%clk 00:05:18]} {[%emt 00:00:39]} 93. Qb7 {[%clk 00:06:13]}
{[%emt 00:00:09]} Rg5+ {[%clk 00:04:54]} {[%emt 00:00:52]} 94. Kf1 {[%clk
00:06:38]} {[%emt 00:00:08]} Rc5 {[%clk 00:04:49]} {[%emt 00:00:25]} 95. Qb1
{[%clk 00:07:06]} {[%emt 00:00:12]} Rd2 {[%clk 00:04:37]} {[%emt 00:00:37]} 96.
Qe1 {[%clk 00:07:26]} {[%emt 00:00:14]} Rcc2 {[%clk 00:04:14]} {[%emt
00:00:51]} 97. Qh4+ {[%clk 00:07:15]} {[%emt 00:00:44]} Kg8 {[%clk 00:04:27]}
{[%emt 00:00:16]} 98. Qe1 {[%clk 00:07:06]} {[%emt 00:00:40]} Nf5 {[%clk
00:04:04]} {[%emt 00:00:51]} 99. Qe6+ {[%clk 00:07:31]} {[%emt 00:00:06]} Kg7
{[%clk 00:04:19]} {[%emt 00:00:13]} 100. Qe5+ {[%clk 00:07:57]} {[%emt
00:00:06]} Kh7 {[%clk 00:04:24]} {[%emt 00:00:25]} 101. Qe1 {[%clk 00:08:02]}
{[%emt 00:00:25]} Ng3+ {[%clk 00:03:34]} {[%emt 00:01:19]} 0-1

[Event "Schack-SM 2023: Junior-SM"]
[Site "Helsingborg Arena, Mellersta Stenbocksgatan 14, Helsingborg, Sweden"]
[Date "2023.07.05"]
[Round "5.3"]
[White "Wernberg, Hugo"]
[Black "Strom-Engdahl, Alexander"]
[Result "1/2-1/2"]
[TimeControl "90 minutes for 40 moves + 30 minutes for the rest of the game + 30 seconds per move from move one."]
[WhiteTitle "FM"]
[WhiteElo "2217"]
[BlackElo "2120"]

1. d4 {[%clk 01:30:57]} {[%emt 00:00:02]} Nf6 {[%clk 01:30:55]} {[%emt
00:00:06]} 2. c4 {[%clk 01:31:22]} {[%emt 00:00:05]} e6 {[%clk 01:31:21]}
{[%emt 00:00:04]} 3. Nf3 {[%clk 01:31:47]} {[%emt 00:00:04]} d5 {[%clk
01:31:46]} {[%emt 00:00:06]} 4. g3 {[%clk 01:32:11]} {[%emt 00:00:06]} dxc4
{[%clk 01:32:11]} {[%emt 00:00:05]} 5. Bg2 {[%clk 01:32:29]} {[%emt 00:00:12]}
c5 {[%clk 01:32:36]} {[%emt 00:00:05]} 6. O-O {[%clk 01:32:50]} {[%emt
00:00:08]} Nc6 {[%clk 01:33:00]} {[%emt 00:00:06]} 7. Ne5 {[%clk 01:33:12]}
{[%emt 00:00:08]} Bd7 {[%clk 01:32:37]} {[%emt 00:00:54]} 8. Na3 {[%clk
01:33:33]} {[%emt 00:00:09]} cxd4 {[%clk 01:32:23]} {[%emt 00:00:43]} 9. Naxc4
{[%clk 01:33:52]} {[%emt 00:00:12]} Be7 {[%clk 01:31:24]} {[%emt 00:01:29]} 10.
Bf4 {[%clk 01:34:06]} {[%emt 00:00:16]} Rc8 {[%clk 01:30:39]} {[%emt 00:01:15]}
11. Qb3 {[%clk 01:34:16]} {[%emt 00:00:19]} Nd5 {[%clk 01:28:20]} {[%emt
00:02:49]} 12. Nxd7 {[%clk 01:19:49]} {[%emt 00:14:57]} Qxd7 {[%clk 01:25:41]}
{[%emt 00:03:09]} 13. Ne5 {[%clk 01:19:35]} {[%emt 00:00:45]} Nxe5 {[%clk
01:25:05]} {[%emt 00:01:05]} 14. Bxe5 {[%clk 01:19:37]} {[%emt 00:00:28]} Bf6
{[%clk 01:20:14]} {[%emt 00:05:22]} 15. Bxf6 {[%clk 01:14:28]} {[%emt
00:05:38]} Nxf6 {[%clk 01:20:27]} {[%emt 00:00:17]} 16. Bxb7 {[%clk 01:12:12]}
{[%emt 00:02:46]} Rc7 {[%clk 01:19:06]} {[%emt 00:01:51]} 17. Bg2 {[%clk
01:11:29]} {[%emt 00:01:13]} O-O {[%clk 01:19:16]} {[%emt 00:00:20]} 18. a4
{[%clk 01:07:56]} {[%emt 00:04:03]} e5 {[%clk 01:13:15]} {[%emt 00:06:31]} 19.
Rfd1 {[%clk 01:05:14]} {[%emt 00:03:12]} Rd8 {[%clk 01:07:52]} {[%emt
00:05:54]} 20. Rd2 {[%clk 01:02:37]} {[%emt 00:03:06]} Qc8 {[%clk 01:01:20]}
{[%emt 00:07:02]} 21. Qd1 {[%clk 00:58:49]} {[%emt 00:04:18]} Qa6 {[%clk
00:53:26]} {[%emt 00:08:25]} 22. b4 {[%clk 00:54:42]} {[%emt 00:04:36]} Qc4
{[%clk 00:51:40]} {[%emt 00:02:16]} 23. Rb2 {[%clk 00:51:24]} {[%emt 00:03:48]}
Nd5 {[%clk 00:46:18]} {[%emt 00:05:53]} 24. Bxd5 {[%clk 00:49:35]} {[%emt
00:02:19]} Qxd5 {[%clk 00:46:02]} {[%emt 00:00:45]} 1/2-1/2

[Event "Schack-SM 2023: Mastarklassen"]
[Site "Helsingborg Arena, Mellersta Stenbocksgatan 14, Helsingborg, Sweden"]
[Date "2023.07.05"]
[Round "5.6"]
[White "Muntean, Victor"]
[Black "Sundin, Emanuel"]
[Result "0-1"]
[TimeControl "90 minutes for 40 moves + 30 minutes for the rest of games + 30 seconds per move from move one."]
[WhiteElo "2097"]
[BlackElo "2103"]

1. e4 {[%clk 01:30:12]} {[%emt 00:00:48]} c6 {[%clk 01:30:39]} {[%emt
00:00:21]} 2. c4 {[%clk 01:29:00]} {[%emt 00:01:41]} d5 {[%clk 01:30:53]}
{[%emt 00:00:16]} 3. cxd5 {[%clk 01:29:17]} {[%emt 00:00:14]} cxd5 {[%clk
01:31:09]} {[%emt 00:00:14]} 4. exd5 {[%clk 01:29:41]} {[%emt 00:00:07]} Nf6
{[%clk 01:31:17]} {[%emt 00:00:21]} 5. Qa4+ {[%clk 01:29:25]} {[%emt 00:00:47]}
Nbd7 {[%clk 01:31:01]} {[%emt 00:00:45]} 6. Nc3 {[%clk 01:26:49]} {[%emt
00:03:06]} g6 {[%clk 01:30:10]} {[%emt 00:01:22]} 7. d4 {[%clk 01:20:43]}
{[%emt 00:06:35]} Bg7 {[%clk 01:29:48]} {[%emt 00:00:52]} 8. d6 {[%clk
01:17:46]} {[%emt 00:03:28]} exd6 {[%clk 01:23:15]} {[%emt 00:07:02]} 9. Qb4
{[%clk 01:09:19]} {[%emt 00:08:57]} O-O {[%clk 01:06:15]} {[%emt 00:17:30]} 10.
Qxd6 {[%clk 01:02:23]} {[%emt 00:07:26]} Re8+ {[%clk 01:05:12]} {[%emt
00:01:33]} 11. Be2 {[%clk 01:00:50]} {[%emt 00:02:04]} Ne4 {[%clk 01:03:23]}
{[%emt 00:02:19]} 12. Nxe4 {[%clk 00:55:26]} {[%emt 00:05:53]} Rxe4 {[%clk
01:02:21]} {[%emt 00:01:31]} 13. Be3 {[%clk 00:55:07]} {[%emt 00:00:48]} Qa5+
{[%clk 00:53:38]} {[%emt 00:09:14]} 14. Bd2 {[%clk 00:52:18]} {[%emt 00:03:20]}
Qb5 {[%clk 00:50:30]} {[%emt 00:03:39]} 15. Qa3 {[%clk 00:37:45]} {[%emt
00:15:03]} Bxd4 {[%clk 00:45:38]} {[%emt 00:05:22]} 16. O-O-O {[%clk 00:35:39]}
{[%emt 00:02:34]} Qc5+ {[%clk 00:25:59]} {[%emt 00:20:10]} 17. Qxc5 {[%clk
00:35:56]} {[%emt 00:00:13]} Nxc5 {[%clk 00:25:32]} {[%emt 00:00:58]} 18. b4
{[%clk 00:24:51]} {[%emt 00:11:34]} Na4 {[%clk 00:23:17]} {[%emt 00:02:45]} 19.
Bf3 {[%clk 00:19:09]} {[%emt 00:06:12]} Bb2+ {[%clk 00:16:19]} {[%emt
00:07:28]} 20. Kc2 {[%clk 00:19:09]} {[%emt 00:00:30]} Rc4+ {[%clk 00:06:47]}
{[%emt 00:10:02]} 21. Kd3 {[%clk 00:19:19]} {[%emt 00:00:20]} Be6 {[%clk
00:06:37]} {[%emt 00:00:40]} 22. Ke2 {[%clk 00:17:00]} {[%emt 00:02:49]} Re8
{[%clk 00:06:11]} {[%emt 00:00:57]} 23. Kf1 {[%clk 00:17:13]} {[%emt 00:00:17]}
Rd4 {[%clk 00:05:54]} {[%emt 00:00:47]} 24. Be2 {[%clk 00:10:53]} {[%emt
00:06:50]} Red8 {[%clk 00:02:33]} {[%emt 00:03:51]} 25. Nf3 {[%clk 00:11:15]}
{[%emt 00:00:08]} R4d6 {[%clk 00:02:49]} {[%emt 00:00:14]} 26. g4 {[%clk
00:05:55]} {[%emt 00:05:51]} Bxg4 {[%clk 00:02:15]} {[%emt 00:01:03]} 27. Ng5
{[%clk 00:06:22]} {[%emt 00:00:03]} Bf5 {[%clk 00:01:42]} {[%emt 00:01:03]} 28.
Bc4 {[%clk 00:02:50]} {[%emt 00:04:02]} Rxd2 {[%clk 00:01:36]} {[%emt
00:00:36]} 29. Bxf7+ {[%clk 00:03:18]} {[%emt 00:00:03]} Kg7 {[%clk 00:01:29]}
{[%emt 00:00:37]} 30. Re1 {[%clk 00:03:19]} {[%emt 00:00:29]} h6 {[%clk
00:01:12]} {[%emt 00:00:49]} 31. Bb3 {[%clk 00:03:47]} {[%emt 00:00:01]} hxg5
{[%clk 00:01:19]} {[%emt 00:00:23]} 32. Bxa4 {[%clk 00:03:35]} {[%emt
00:00:42]} Bh3+ {[%clk 00:01:21]} {[%emt 00:00:28]} 33. Kg1 {[%clk 00:04:02]}
{[%emt 00:00:03]} R8d4 {[%clk 00:01:27]} {[%emt 00:00:24]} 0-1

[ePGN "0.1;DGT LiveChess/2.2.5"]